bitfinex/quotes_ETHUSD_20250223
["timestamp","ask_amount","ask_price","bid_price","bid_amount"]
[1740307096668,8.3e-07,2810.8,2810.7,12.69631042]
[1740307096876,0.18539238,2811.8,2811.5,3.5567]
[1740307097169,0.18539238,2811.8,2811.5,7.11344]
[1740307097467,0.7961,2811.7,2811.3,3.55699]
[1740307097670,0.7961,2811.7,2811.4,3.55685]
[1740307098168,4.35267,2811.7,2811.1,7.11449]
[1740307098371,1.24990714,2811.7,2811.2,3.55712]
[1740307099766,1.24990714,2811.7,2811.1,3.55724]
[1740307099965,1.24990714,2811.7,2811.3,3.55706]
[1740307100377,1.24990714,2811.7,2810.7,5.159508]
[1740307100541,0.7961,2811.7,2811.6,3.55669]
[1740307100745,0.7961,2811.7,2811.5,3.55674]
[1740307101044,0.83543258,2811.7,2811.5,3.55674]
[1740307101443,0.83543258,2811.7,2811.5,7.11347]
[1740307102167,0.83543258,2811.7,2811.5,3.55673]
[1740307103380,0.83543258,2811.7,2811.6,3.55669]
[1740307108901,0.03933258,2811.7,2811.6,7.52987358]
[1740307109082,0.03933258,2811.7,2811.6,8.33237358]
[1740307109289,9.03e-06,2812.2,2812.1,3.50606]
[1740307109594,0.8022,2812.3,2812.2,3.50593]
[1740307109797,0.8022,2812.3,2812.2,3.55593]
[1740307109998,0.18535309,2812.5,2812.4,3.55568]
[1740307113795,0.3928,2812.7,2812.6,3.55542]
[1740307115799,0.3928,2812.7,2812.6,4.35792]
[1740307116769,1.11195649,2812.7,2812.6,4.35792]
[1740307118191,1.15249076,2812.7,2812.6,4.35792]
[1740307119274,1.15249076,2812.7,2812.6,0.8025]
[1740307119470,1.15249076,2812.7,2812.4,0.70669339]
[1740307119702,0.8022,2812.6,2812.0,5.39]
[1740307120001,3.55582,2812.3,2812.0,5.39]
[1740307120200,3.55578,2812.4,2812.0,5.39]
[1740307120401,3.55578,2812.4,2811.2,3.55719]
[1740307120402,0.7608,2812.1,2811.5,0.8326]
[1740307120606,0.7608,2812.1,2811.2,0.8326]
[1740307120771,0.55,2812.0,2811.4,3.55693]
[1740307120972,0.04053427,2812.0,2811.2,0.8326]
[1740307121214,0.04053427,2812.0,2811.7,7.11303]
[1740307121386,0.04053427,2812.0,2811.9,3.55631]
[1740307121578,0.04053427,2812.0,2811.8,3.55633]
[1740307122511,0.04053427,2812.0,2811.6,3.55664]
[1740307122704,0.04053427,2812.0,2811.6,3.55662]
[1740307122904,0.7608,2812.1,2811.7,3.55649]
[1740307123092,0.04053427,2811.9,2811.7,3.55649]
[1740307123296,0.7608,2812.1,2811.7,3.55649]
[1740307123509,0.04053427,2811.8,2811.7,3.55649]
[1740307123810,0.7608,2812.1,2811.7,3.55649]
[1740307124005,0.04053427,2811.8,2811.7,3.55656]
[1740307124189,0.7608,2812.1,2811.7,3.55656]
[1740307124510,0.04053427,2811.8,2811.5,3.55672]
[1740307124707,3.55632,2811.9,2811.3,3.557]
[1740307125010,3.5562,2812.0,2811.4,3.55687]
[1740307125170,0.04053427,2811.8,2811.4,3.55687]
[1740307125372,3.5562,2812.0,2811.4,3.55687]
[1740307125576,0.04053427,2811.7,2811.4,3.55687]
[1740307125777,4.31689,2812.1,2811.4,3.55687]
[1740307125997,0.04053427,2811.6,2811.5,3.55682]
[1740307126205,4.31689,2812.1,2811.4,3.55687]
[1740307126410,4.31689,2812.1,2811.6,3.55669]
[1740307126607,1.6030739,2812.1,2811.7,3.55654]
[1740307126920,0.7608,2812.1,2811.9,3.55623]
[1740307127206,0.7608,2812.1,2811.6,3.55662]
[1740307127413,0.7608,2812.1,2811.8,3.55641]
[1740307128784,0.7608,2812.1,2811.2,0.8326]
[1740307128985,9.03e-06,2812.2,2812.0,3.55618]
[1740307129184,9.03e-06,2812.2,2811.9,3.55628]
[1740307129404,9.03e-06,2812.2,2812.0,3.55612]
[1740307130097,9.03e-06,2812.2,2811.9,3.55628]
[1740307130292,9.03e-06,2812.2,2812.1,3.55606]
[1740307130517,0.7644,2812.4,2812.1,3.55606]
[1740307130705,0.7644,2812.4,2812.1,3.55597]
[1740307130909,0.7644,2812.4,2812.1,7.11194]
[1740307131110,3.59586909,2812.3,2811.7,4.34831]
[1740307131305,0.43602691,2812.2,2811.7,4.34831]
[1740307131621,0.0400876,2812.1,2811.8,3.55643]
[1740307132119,3.55581,2812.3,2811.8,3.55643]
[1740307132600,0.0400876,2812.2,2811.8,3.55643]
[1740307132822,3.55581,2812.3,2811.8,3.55643]
[1740307133117,0.0400876,2812.1,2811.8,3.55643]
[1740307133417,0.0400876,2812.0,2811.8,3.55643]
[1740307133718,3.55581,2812.3,2811.8,3.55643]
[1740307134023,4.3201,2812.4,2811.8,3.55643]
[1740307134222,0.0400876,2812.2,2811.8,3.55643]
[1740307134405,4.3201,2812.4,2811.8,3.55643]
[1740307134723,0.0400876,2812.1,2811.8,3.55643]
[1740307135017,0.0400876,2812.0,2811.8,3.55643]
[1740307135217,0.7644,2811.9,2811.5,3.55675]
[1740307135419,0.8044876,2811.9,2811.5,3.55675]
[1740307135624,0.8044876,2811.9,2811.2,0.7918]
[1740307135832,0.8044876,2811.9,2811.5,3.5567]
[1740307135833,0.7644,2811.9,2811.5,3.5567]
[1740307136318,3.55651,2811.8,2811.3,3.55705]
[1740307136519,3.55658,2811.7,2811.2,4.34894]
[1740307136726,3.55659,2811.7,2811.2,7.11426]
[1740307137019,0.0400876,2811.6,2811.2,3.55712]
[1740307137200,3.55657,2811.7,2811.2,3.55712]
[1740307137401,0.0400876,2811.5,2811.2,3.55712]
[1740307137601,3.55657,2811.7,2811.2,3.55712]
[1740307137798,0.0400876,2811.4,2811.2,3.55711]
[1740307138003,3.55657,2811.7,2811.2,3.55711]
[1740307138203,0.0400876,2811.3,2811.2,7.11423]
[1740307138514,3.55657,2811.7,2811.2,7.11423]
[1740307138715,0.0400876,2811.3,2811.2,3.55711]
[1740307138888,3.55657,2811.7,2811.2,3.55711]
[1740307139092,0.03977393,2811.3,2811.2,3.55711]
[1740307139345,3.55657,2811.7,2811.2,3.55711]
[1740307139631,0.03977393,2811.3,2811.2,3.55711]
[1740307139810,0.55,2811.8,2811.2,3.55711]
[1740307140031,0.55,2811.8,2811.3,3.55697]
[1740307140342,0.7644,2811.9,2811.4,3.55684]
[1740307140490,0.7644,2811.9,2811.7,3.55655]
[1740307140692,0.18533747,2812.0,2811.8,3.55644]
[1740307140900,0.18533747,2812.0,2811.9,3.55631]
[1740307141304,0.18533747,2812.0,2811.8,3.55644]
[1740307141632,0.18533747,2812.0,2811.8,7.11281]
[1740307141936,0.18533747,2812.0,2811.8,3.55637]
[1740307142108,0.18533747,2812.0,2811.9,3.55631]
[1740307142909,0.18533747,2812.0,2811.9,4.37381]
[1740307145130,0.37122036,2812.1,2812.0,3.55618]
[1740307145828,0.18566375,2812.5,2812.1,3.55598]
[1740307146034,0.55684719,2812.5,2812.1,3.55598]
[1740307146235,0.55684719,2812.5,2812.2,3.55593]
[1740307147243,0.55684719,2812.5,2812.0,3.55608]
[1740307147417,0.55684719,2812.5,2812.1,3.55598]
[1740307147746,0.55684719,2812.5,2812.3,3.5558]
[1740307148446,0.55684719,2812.5,2812.4,4.36118]
[1740307148850,0.18566375,2812.5,2812.4,4.36118]
[1740307149853,0.3928,2812.7,2812.6,3.55542]
[1740307151120,0.3928,2812.7,2812.4,3.55558]
[1740307151343,0.3928,2812.7,2812.3,3.55576]
[1740307151557,0.3928,2812.7,2812.1,4.36148]
[1740307151558,0.8058,2812.6,2812.1,0.8055]
[1740307151852,0.84603004,2812.6,2812.3,3.5557]
[1740307152021,0.84603004,2812.6,2812.2,3.55593]
[1740307152226,0.04023004,2812.6,2812.1,1.42505]
[1740307152434,0.04023004,2812.6,2812.5,3.55555]
[1740307153672,0.04023004,2812.6,2812.5,4.266665]
[1740307153955,0.3928,2812.7,2812.5,5.072165]
[1740307154165,0.3928,2812.7,2812.6,3.55542]
[1740307155985,0.3928,2812.7,2812.2,3.55593]
[1740307155986,1.1986,2812.7,2812.2,3.55593]
[1740307156130,1.1986,2812.7,2812.5,3.55547]
[1740307156329,1.23859386,2812.7,2812.5,3.55547]
[1740307156567,1.23859386,2812.7,2812.4,3.55555]
[1740307159136,1.23859386,2812.7,2812.5,3.55548]
[1740307160168,1.23859386,2812.7,2812.6,3.55542]
[1740307160493,0.43279386,2812.7,2812.6,3.55542]
[1740307162371,0.43279386,2812.7,2812.5,3.55548]
[1740307163340,0.43279386,2812.7,2812.1,0.61955]
[1740307163341,0.43279386,2812.7,2812.2,0.75]
[1740307163564,0.43279386,2812.7,2812.5,3.5555]
[1740307164464,0.43279386,2812.7,2812.4,3.55566]
[1740307165175,0.43279386,2812.7,2812.3,3.55569]
[1740307165476,0.43279386,2812.7,2812.4,3.55558]
[1740307165677,0.43279386,2812.7,2812.2,0.75]
[1740307165874,0.8055,2812.3,2811.7,3.55652]
[1740307166074,0.8055,2812.3,2811.2,8.65183358]
[1740307166075,1.3555,2812.0,2811.2,0.762]
[1740307166275,4.3622,2811.6,2810.6,3.26183358]
[1740307166483,0.8055,2811.6,2811.1,3.55724]
[1740307166668,0.03999386,2811.5,2811.1,3.55724]
[1740307167066,0.03999386,2811.5,2810.6,8.65183358]
[1740307167067,0.03999386,2811.5,2810.6,11.65183358]
[1740307167245,0.03999386,2811.5,2811.4,3.55694]
[1740307172279,0.71439512,2811.5,2811.4,3.55694]
[1740307172577,0.71439512,2811.5,2811.4,7.36614]
[1740307173142,0.8087,2812.4,2812.1,3.55597]
[1740307173351,0.03905257,2812.3,2811.6,3.55669]
[1740307173549,0.8087,2812.4,2812.1,3.55598]
[1740307173760,0.03905257,2812.3,2812.1,3.55598]
[1740307174370,0.22472071,2812.3,2812.1,3.55598]
[1740307174774,0.22472071,2812.3,2811.9,3.55625]
[1740307174775,0.70342306,2812.2,2811.9,3.5562]
[1740307174944,0.70342306,2812.2,2812.0,3.55616]
[1740307175349,0.03905257,2812.1,2812.0,3.55616]
[1740307176380,0.03905257,2812.1,2812.0,5.076607]
[1740307176567,0.70342306,2812.2,2812.0,5.076607]
[1740307176750,0.70342306,2812.2,2812.1,3.55606]
[1740307178151,0.74247563,2812.2,2812.1,3.55606]
[1740307179894,0.70342306,2812.2,2812.1,3.55606]
[1740307180077,0.70342306,2812.2,2812.1,4.3384067]
[1740307184869,0.70342306,2812.2,2812.1,5.1295067]
[1740307186201,1.2015,2812.7,2812.1,5.1295067]
[1740307186500,1.2015,2812.7,2812.5,3.5555]
[1740307186669,0.72066232,2812.6,2812.5,3.5555]
[1740307188283,0.72066232,2812.6,2812.5,4.266613]
[1740307191310,0.3928,2812.7,2812.6,3.55542]
[1740307191804,0.43100547,2812.7,2812.6,3.55542]
[1740307192176,0.3928,2812.7,2812.6,3.55542]
[1740307196079,1.09977322,2812.7,2812.6,4.28447055]
[1740307196390,1.09977322,2812.7,2812.6,5.54161226]
[1740307199106,0.18565228,2812.8,2812.6,7.81256171]
[1740307199311,0.18565228,2812.8,2812.7,9.81713358]
[1740307200981,2.28e-06,2812.8,2812.7,10.62723358]
[1740307201305,9.03e-06,2813.8,2812.7,10.62723358]
[1740307201306,1.3587,2813.6,2812.7,7.07193358]
[1740307201505,1.3587,2813.6,2813.4,3.55433]
[1740307201713,1.3587,2813.6,2813.5,3.55429]
[1740307201877,1.54430107,2813.6,2813.5,3.55429]
[1740307203178,1.54430107,2813.6,2813.4,3.55433]
[1740307203384,1.54430107,2813.6,2813.0,3.55488]
[1740307203385,0.55,2813.5,2813.0,3.5549]
[1740307203713,0.55,2813.5,2813.0,3.99357075]
[1740307204040,4.36331,2813.3,2812.7,5.39]
[1740307204187,4.36331,2813.3,2812.2,3.5559]
[1740307204188,0.55,2812.7,2812.2,3.55593]
[1740307204515,0.55,2812.7,2812.6,3.55542]
[1740307205737,0.759,2813.0,2812.9,3.55502]
[1740307205937,1.309,2813.0,2812.9,3.55502]
[1740307206090,1.34850818,2813.0,2812.9,3.55502]
[1740307206712,0.03950818,2813.0,2812.9,4.266039]
[1740307207089,0.55,2813.2,2812.9,4.266039]
[1740307207291,0.03933705,2813.0,2812.9,3.55502]
[1740307207599,3.59433705,2813.0,2812.3,5.39]
[1740307207804,3.59433705,2813.0,2812.2,3.55587]
[1740307207805,0.759,2812.6,2812.2,3.55587]
[1740307208138,0.58939409,2812.5,2812.2,3.55585]
[1740307208342,0.58939409,2812.5,2812.3,3.55579]
[1740307208744,0.58939409,2812.5,2811.8,3.0]
[1740307208945,0.55,2812.3,2811.9,4.26382336]
[1740307209233,0.55,2812.1,2811.9,4.26382336]
[1740307209391,0.55,2812.1,2812.0,3.55618]
[1740307209787,0.58921344,2812.1,2812.0,3.55618]
[1740307210023,0.55,2812.1,2812.0,3.55618]
[1740307210223,0.55,2812.1,2811.9,3.5562]
[1740307210224,0.58921344,2812.1,2811.9,3.5562]
[1740307210432,0.58921344,2812.1,2811.7,3.55648]
[1740307210727,0.55,2812.1,2811.7,3.993568]
[1740307211122,0.03875693,2812.0,2811.8,3.55636]
[1740307211727,1.309,2811.9,2811.2,3.55709]
[1740307211938,0.759,2811.8,2811.2,3.55709]
[1740307212227,0.55,2811.6,2811.2,7.11418]
[1740307212392,0.55,2811.6,2811.2,3.55709]
[1740307212788,0.55,2811.4,2811.2,3.55709]
[1740307213321,0.03729225,2811.3,2811.2,3.55709]
[1740307214306,0.55,2811.1,2810.8,3.55765]
[1740307214550,0.55,2811.1,2810.8,7.11527]
[1740307214738,0.55,2811.1,2810.8,3.55762]
[1740307214895,0.03689258,2811.0,2810.8,7.11521]
[1740307215100,0.03689258,2811.0,2810.9,3.55757]
[1740307215101,0.77265899,2811.0,2810.9,3.55757]
[1740307217631,0.73576641,2811.0,2810.9,3.55757]
[1740307217833,0.77238297,2811.0,2810.9,3.55757]
[1740307219344,0.55,2810.9,2810.7,3.55772]
[1740307219563,0.55,2810.9,2810.8,3.5577]
[1740307219710,0.18576641,2811.0,2810.7,3.55777]
[1740307220223,0.18576641,2811.0,2810.6,7.11574]
[1740307220546,0.03661656,2810.9,2810.6,3.55786]
[1740307220934,0.03661656,2810.9,2810.8,3.5577]
[1740307222324,0.03661656,2810.9,2810.8,4.14678649]
[1740307222534,0.18576641,2811.0,2810.9,3.55757]
[1740307224653,0.22013377,2811.0,2810.9,3.55757]
[1740307225336,0.18576641,2811.0,2810.9,3.55757]
[1740307225934,0.22013377,2811.0,2810.9,3.55757]
[1740307227263,0.92159812,2811.0,2810.9,4.25839302]
[1740307228162,0.88723076,2811.0,2810.9,4.25839302]
[1740307228536,0.92159812,2811.0,2810.9,4.25839302]
[1740307228713,1.47159812,2811.0,2810.9,4.25839302]
[1740307228909,1.43723076,2811.0,2810.9,4.25839302]
[1740307229114,1.47159812,2811.0,2810.9,4.25839302]
[1740307232456,1.47159812,2811.0,2810.9,0.70082302]
[1740307232755,0.55,2810.9,2810.8,3.55763]
[1740307232919,0.55,2810.9,2810.7,3.55773]
[1740307233122,0.55,2810.9,2810.8,3.5577]
[1740307233123,0.58451023,2810.9,2810.8,3.5577]
[1740307235377,0.55,2810.9,2810.8,3.5577]
[1740307236022,0.58464356,2810.9,2810.8,3.5577]
[1740307240676,0.58464356,2810.9,2810.7,3.55782]
[1740307241238,0.55,2810.7,2810.1,5.39]
[1740307241540,0.55,2810.7,2810.4,3.55813]
[1740307241774,0.55,2810.7,2810.5,3.55798]
[1740307241944,0.18577362,2810.6,2810.5,3.55798]
[1740307242140,0.22041718,2810.6,2810.5,3.55798]
[1740307242371,0.55,2810.5,2810.4,3.55813]
[1740307242969,0.58436734,2810.5,2810.4,3.55813]
[1740307243165,0.55,2810.5,2810.4,3.55813]
[1740307243387,0.55,2810.5,2810.4,4.3592624]
[1740307244574,0.18577362,2810.6,2810.5,3.55808]
[1740307244997,0.73577362,2810.6,2810.5,3.55808]
[1740307249267,1.44074719,2810.6,2810.5,4.28742444]
[1740307254793,0.89074719,2810.6,2810.5,4.28742444]
[1740307262246,0.89074719,2810.6,2810.5,5.14988988]
[1740307267573,0.89074719,2810.6,2810.5,4.28742444]
[1740307276382,2.22004719,2810.6,2810.5,4.28742444]
[1740307276702,2.25415738,2810.6,2810.5,4.28742444]
[1740307278199,2.25415738,2810.6,2810.5,0.72934444]
[1740307278500,1.3293,2810.5,2810.2,3.55846]
[1740307278663,0.20650736,2810.4,2810.2,3.55846]
[1740307278862,0.03411019,2810.3,2810.2,3.55846]
[1740307279501,0.7793,2810.2,2810.1,3.55849]
[1740307280200,0.81341019,2810.2,2810.1,3.55849]
[1740307280406,0.7793,2810.2,2810.1,3.55849]
[1740307281907,0.18582126,2810.3,2810.2,3.55846]
[1740307282109,0.18582126,2810.3,2810.2,5.403726]
[1740307282410,0.18582126,2810.3,2810.2,3.55846]
[1740307282915,0.21944555,2810.3,2810.2,3.55846]
[1740307283281,0.18582126,2810.3,2810.2,3.55846]
[1740307283483,0.21944555,2810.3,2810.2,3.55846]
[1740307284206,0.18582126,2810.3,2810.2,3.55846]
[1740307284519,0.18582126,2810.3,2810.2,5.047855]
[1740307285423,0.18582126,2810.3,2810.2,3.55846]
[1740307285793,0.21944555,2810.3,2810.2,3.55846]
[1740307286706,0.18582126,2810.3,2810.2,3.55846]
[1740307286906,0.21937889,2810.3,2810.2,3.55846]
[1740307287502,0.91832469,2810.3,2810.2,3.55846]
[1740307287709,1.46832469,2810.3,2810.2,3.55846]
[1740307288483,2.24922469,2810.3,2810.2,3.55846]
[1740307289226,1.46832469,2810.3,2810.2,3.55846]
[1740307290101,1.46832469,2810.3,2810.2,4.270155]
[1740307291127,1.43476706,2810.3,2810.2,4.270155]
[1740307292285,1.46832469,2810.3,2810.2,4.270155]
[1740307292688,1.43476706,2810.3,2810.2,4.270155]
[1740307293639,1.46832469,2810.3,2810.2,4.270155]
[1740307294045,0.55,2810.2,2810.1,3.55849]
[1740307294218,0.55,2810.2,2810.0,3.55863]
[1740307294417,0.55,2810.2,2810.1,3.55859]
[1740307294807,0.58352905,2810.2,2810.1,3.55859]
[1740307295621,0.55,2810.2,2810.1,3.55859]
[1740307295950,0.58352905,2810.2,2810.1,3.55859]
[1740307297053,0.55,2810.2,2810.1,4.270312]
[1740307300215,0.88476706,2810.3,2810.2,3.55846]
[1740307301543,7.06e-06,2810.3,2810.2,7.31116]
[1740307304461,9.03e-06,2810.9,2810.3,3.0]
[1740307304765,9.03e-06,2810.9,2810.8,3.5577]
[1740307304915,0.55,2811.0,2810.9,3.55757]
[1740307305253,1.26783615,2811.0,2810.9,3.55757]
[1740307307035,0.71783615,2811.0,2810.9,4.269097]
[1740307307228,0.99873371,2811.3,2810.9,4.269097]
[1740307307423,1.54873371,2811.3,2811.2,3.55719]
[1740307307837,0.18573371,2811.3,2811.2,3.55719]
[1740307308530,0.18573371,2811.3,2811.2,3.54744479]
[1740307311452,0.18573371,2811.3,2811.2,4.28831705]
[1740307311754,0.813,2811.7,2811.5,3.55671]
[1740307311928,1.5487015,2811.7,2811.6,3.55669]
[1740307317466,1.5487015,2811.7,2811.4,3.55692]
[1740307317962,1.5487015,2811.7,2811.4,7.11379]
[1740307318557,1.5487015,2811.7,2811.3,3.55704]
[1740307318763,2.09632712,2811.7,2811.3,3.55704]
[1740307319062,2.09632712,2811.7,2811.0,0.8139]
[1740307319063,0.55,2811.6,2810.8,6.2039]
[1740307319258,0.55,2811.6,2811.4,7.1138]
[1740307319422,0.55,2811.6,2811.4,3.55686]
[1740307319925,0.55,2811.6,2811.5,3.55682]
[1740307320925,0.55,2811.6,2811.3,3.55699]
[1740307321125,0.55,2811.6,2811.4,3.55687]
[1740307322464,0.55,2811.6,2811.5,3.55682]
[1740307324564,0.55,2811.6,2811.4,3.55692]
[1740307326461,0.55,2811.6,2811.2,3.55718]
[1740307326760,0.55,2811.6,2811.2,3.55711]
[1740307326967,0.55,2811.6,2811.3,3.55704]
[1740307327735,0.55,2811.6,2811.4,3.55694]
[1740307328166,0.55,2811.6,2811.3,3.55704]
[1740307329646,0.55,2811.6,2811.3,7.11404]
[1740307329850,0.55,2811.6,2811.4,3.55693]
[1740307334266,0.55,2811.6,2811.5,3.55682]
[1740307337679,1.58161437,2812.2,2811.2,0.8037]
[1740307337680,3.55652,2811.8,2811.2,3.55713]
[1740307337978,3.55658,2811.7,2811.0,4.36107]
[1740307338148,3.55658,2811.7,2811.1,3.55726]
[1740307338563,3.55658,2811.7,2811.2,3.55719]
[1740307339278,3.55682,2811.5,2810.8,4.36133]
[1740307339483,0.55,2811.4,2810.8,4.36133]
[1740307339669,4.10698,2811.4,2810.8,4.36133]
[1740307340294,4.10698,2811.4,2810.8,7.91895]
[1740307340590,0.7593,2811.3,2810.9,3.55749]
[1740307340780,0.7593,2811.3,2811.0,3.55745]
[1740307341560,0.7593,2811.3,2810.9,3.55749]
[1740307343103,0.7593,2811.3,2811.0,3.55733]
[1740307343392,0.7593,2811.3,2811.1,3.55731]
[1740307344781,0.7593,2811.3,2810.9,7.11499]
[1740307344981,0.7593,2811.3,2811.0,3.55741]
[1740307345391,0.7593,2811.3,2810.9,3.55749]
[1740307345594,0.7593,2811.3,2810.9,7.11497]
[1740307346691,0.7593,2811.3,2810.9,3.55748]
[1740307346893,0.7593,2811.3,2810.9,7.11497]
[1740307347191,0.7593,2811.3,2811.0,3.55743]
[1740307347562,0.7593,2811.3,2810.9,3.55748]
[1740307347765,0.7593,2811.3,2810.9,7.11498]
[1740307348296,0.7593,2811.3,2810.9,3.55748]
[1740307348978,0.7593,2811.3,2810.6,0.7883]
[1740307348979,1.3093,2811.3,2811.2,3.55719]
[1740307349182,0.7593,2811.3,2811.1,3.5573]
[1740307349492,0.7593,2811.3,2810.6,0.7883]
[1740307349790,0.7593,2811.3,2810.9,3.55746]
[1740307349791,0.55,2811.2,2810.9,3.55746]
[1740307349991,0.55,2811.2,2811.0,3.55744]
[1740307350293,0.55,2811.2,2810.7,4.09473144]
[1740307350492,0.55,2811.2,2811.0,3.55737]
[1740307351398,0.55,2811.2,2811.0,3.55739]
[1740307352203,0.55,2811.2,2810.9,3.55751]
[1740307352363,0.7995,2811.6,2811.3,3.557]
[1740307352562,0.7995,2811.6,2811.1,7.11453]
[1740307352764,0.7995,2811.6,2811.1,3.55721]
[1740307352963,0.55,2811.5,2811.3,3.55706]
[1740307354907,0.55,2811.5,2811.1,3.55721]
[1740307355404,0.55,2811.5,2810.9,7.11499]
[1740307355405,4.10682,2811.5,2810.9,7.11499]
[1740307355596,4.597437,2811.5,2810.9,7.11499]
[1740307355999,0.55,2811.3,2810.9,3.55749]
[1740307356210,0.55,2811.3,2810.9,7.11498]
[1740307356384,0.55,2811.4,2810.9,7.11498]
[1740307356590,0.55,2811.4,2811.0,3.55745]
[1740307356889,0.55,2811.4,2810.9,7.11499]
[1740307357102,1.60352714,2811.4,2810.9,3.55749]
[1740307357289,0.7995,2811.3,2810.9,3.55749]
[1740307357890,0.7995,2811.3,2811.0,3.55743]
[1740307363915,0.7995,2811.3,2811.0,7.1148]
[1740307364097,0.7995,2811.3,2811.0,7.11475]
[1740307364420,0.7995,2811.3,2811.0,7.11474]
[1740307364914,0.7995,2811.3,2811.1,3.55724]
[1740307365681,0.55,2811.4,2811.1,3.55724]
[1740307367690,0.55,2811.4,2811.2,7.11432]
[1740307367887,0.18574037,2811.6,2811.5,3.55682]
[1740307368100,5.24,2811.8,2811.7,3.55656]
[1740307368304,0.55,2811.7,2811.5,7.11354]
[1740307368504,0.55,2811.7,2811.6,3.55669]
[1740307371447,0.55,2811.7,2811.6,3.55669]
[1740307372010,0.96940072,2812.0,2811.6,3.55669]
[1740307372011,0.18570072,2812.0,2811.9,3.55631]
[1740307372231,2.36531437,2812.9,2812.0,0.8171]
[1740307372510,0.1856706,2812.5,2812.4,3.55568]
[1740307372718,0.55,2812.8,2812.3,3.5558]
[1740307373038,0.55,2812.6,2812.3,3.55572]
[1740307373221,0.55,2812.6,2812.4,3.55566]
[1740307373417,0.55,2812.6,2812.3,3.55572]
[1740307375545,0.55,2812.6,2812.1,7.11198]
[1740307375849,0.55,2812.6,2812.2,0.792908]
[1740307376013,0.03372401,2812.5,2812.2,0.792908]
[1740307376718,4.10601,2812.2,2811.5,4.37389]
[1740307376926,0.55,2811.9,2811.4,3.55683]
[1740307377323,0.03517214,2811.8,2811.4,7.11368]
[1740307377749,0.03517214,2811.8,2811.5,3.55679]
[1740307378047,0.03517214,2811.8,2811.6,0.711362]
[1740307379346,0.03517214,2811.8,2811.6,4.267982]
[1740307380750,0.7837,2812.1,2811.7,4.37466]
[1740307381245,0.8112,2812.3,2812.0,3.55618]
[1740307381951,0.55,2812.2,2812.0,3.55618]
[1740307383449,0.55,2812.2,2811.8,3.55644]
[1740307383741,0.55,2812.2,2811.9,3.55629]
[1740307384657,0.55,2812.2,2811.8,3.55644]
[1740307385618,0.55,2812.2,2811.8,3.55636]
[1740307386023,0.0348674,2812.1,2811.8,3.55636]
[1740307388758,0.0348674,2812.1,2811.8,7.11273]
[1740307389161,0.0348674,2812.1,2811.9,3.55631]
[1740307389324,0.0348674,2812.1,2811.8,3.55636]
[1740307389656,0.0348674,2812.1,2811.9,3.55624]
[1740307390048,0.0348674,2812.1,2812.0,3.55618]
[1740307390362,5.24,2812.4,2812.3,3.5558]
[1740307390556,0.831,2812.6,2812.3,3.5558]
[1740307390726,0.831,2812.6,2812.4,3.55567]
[1740307391634,0.55,2812.5,2812.3,3.55573]
[1740307392338,0.55,2812.5,2812.3,7.11144]
[1740307392639,0.831,2812.8,2812.6,3.55542]
[1740307393176,0.73565616,2812.7,2812.6,3.55542]
[1740307394165,0.18565616,2812.7,2812.6,3.55542]
[1740307396584,0.18565616,2812.7,2812.5,3.55547]
[1740307396934,0.18565616,2812.7,2812.6,3.55542]
[1740307398467,0.18565616,2812.7,2812.5,3.55547]
[1740307398765,0.18565616,2812.7,2812.6,3.55542]
[1740307398967,0.18565616,2812.7,2812.5,3.55547]
[1740307399176,0.18565616,2812.7,2812.5,7.11094]
[1740307399349,0.18565616,2812.7,2812.5,7.9699084]
[1740307399978,0.18565616,2812.7,2812.5,4.4144384]
[1740307400153,0.18565616,2812.7,2812.6,3.55542]
[1740307401138,0.21952808,2812.7,2812.6,3.55542]
[1740307408691,0.94116434,2812.7,2812.6,4.28460521]
[1740307408992,1.49116434,2812.7,2812.6,0.72918521]
[1740307409194,1.49116434,2812.7,2812.1,3.55603]
[1740307409195,0.55,2812.6,2812.3,3.5558]
[1740307409572,0.03463393,2812.5,2812.3,3.5558]
[1740307411180,0.55,2812.6,2812.3,3.5558]
[1740307411381,3.55556,2812.5,2812.0,0.8029]
[1740307411691,0.03463393,2812.4,2812.0,4.35906]
[1740307411899,0.03463393,2812.4,2812.0,6.01557002]
[1740307412111,0.03463393,2812.4,2811.9,8.9462]
[1740307412112,0.55,2812.3,2811.9,8.9462]
[1740307412257,1.3043,2812.3,2811.9,8.9462]
[1740307412459,1.3043,2812.3,2811.9,5.39]
[1740307412707,0.55,2812.1,2811.9,5.39]
[1740307413063,0.55,2812.2,2811.9,5.39]
[1740307413265,0.03451963,2812.0,2811.8,3.55637]
[1740307413482,0.55,2812.2,2811.7,3.55648]
[1740307413790,0.03451963,2811.9,2811.8,3.55644]
[1740307413994,0.55,2812.2,2811.8,3.55644]
[1740307414601,0.03451963,2812.1,2811.8,3.55644]
[1740307415103,0.03451963,2812.1,2811.9,3.55627]
[1740307415476,0.55,2812.2,2811.9,3.55627]
[1740307415685,0.03451963,2812.0,2811.9,3.55627]
[1740307416002,0.55,2812.2,2811.9,3.55627]
[1740307416161,0.03451963,2812.0,2811.9,3.55627]
[1740307416364,0.55,2812.2,2811.9,3.55627]
[1740307416564,0.03451963,2812.0,2811.9,3.55627]
[1740307417061,0.55,2812.2,2811.9,3.55627]
[1740307417257,0.03451963,2812.0,2811.9,3.55627]
[1740307417531,0.55,2812.2,2811.9,3.55627]
[1740307417677,0.03451963,2812.0,2811.9,3.55627]
[1740307417877,0.55,2812.2,2811.9,3.55627]
[1740307418076,0.03451963,2812.0,2811.9,3.55627]
[1740307418394,0.55,2812.2,2811.9,3.55627]
[1740307418600,0.03451963,2812.0,2811.9,3.55627]
[1740307419066,0.55,2812.2,2811.9,3.55627]